[Event "Early-Titled-Tuesday-Blitz-September-26-2023"]
[Site "Chess.com"]
[Date "2023.09.26"]
[Round "6"]
[White "artin10862"]
[Black "Arek_pacitan"]
[Result "1-0"]
[WhiteElo "2892"]
[BlackElo "2678"]
[TimeControl "180+1"]
[EndTime "9:09:51 PDT"]
[Termination "artin10862 won by checkmate"]

1. e4 {[%clk 0:02:56.5]} 1... c5 {[%clk 0:03:00.1]} 2. Nf3 {[%clk 0:02:56.3]}
2... d6 {[%clk 0:03:00.7]} 3. d4 {[%clk 0:02:54.4]} 3... cxd4 {[%clk 0:03:01.6]}
4. Nxd4 {[%clk 0:02:55]} 4... Nf6 {[%clk 0:03:02.2]} 5. Nc3 {[%clk 0:02:55.5]}
5... a6 {[%clk 0:03:02.6]} 6. Bg5 {[%clk 0:02:53.8]} 6... e6 {[%clk 0:03:02.8]}
7. f4 {[%clk 0:02:41]} 7... Be7 {[%clk 0:03:02.2]} 8. Qf3 {[%clk 0:02:40.5]}
8... Nbd7 {[%clk 0:03:02]} 9. Bc4 {[%clk 0:02:35.3]} 9... O-O {[%clk 0:02:42.3]}
10. O-O-O {[%clk 0:02:24.5]} 10... Qc7 {[%clk 0:02:41.3]} 11. Bb3 {[%clk
0:02:14.7]} 11... b5 {[%clk 0:02:33]} 12. g4 {[%clk 0:01:34.6]} 12... Bb7 {[%clk
0:02:25.6]} 13. Bxf6 {[%clk 0:01:28.9]} 13... Bxf6 {[%clk 0:02:20.3]} 14. g5
{[%clk 0:01:28.6]} 14... Bxd4 {[%clk 0:02:17.8]} 15. Rxd4 {[%clk 0:01:28.4]}
15... Nc5 {[%clk 0:02:09.1]} 16. h4 {[%clk 0:01:25.2]} 16... Rac8 {[%clk
0:02:02.2]} 17. Rhd1 {[%clk 0:01:23.5]} 17... e5 {[%clk 0:01:59.5]} 18. R4d2
{[%clk 0:00:41.4]} 18... Nxb3+ {[%clk 0:01:43.7]} 19. axb3 {[%clk 0:00:40.5]}
19... exf4 {[%clk 0:01:42.1]} 20. Qxf4 {[%clk 0:00:38.7]} 20... b4 {[%clk
0:01:41.7]} 21. Ne2 {[%clk 0:00:34.8]} 21... Rfe8 {[%clk 0:01:36.7]} 22. Ng3
{[%clk 0:00:32.6]} 22... Qa5 {[%clk 0:01:13.4]} 23. Kb1 {[%clk 0:00:31.7]} 23...
Qe5 {[%clk 0:01:13.8]} 24. Qxe5 {[%clk 0:00:26]} 24... dxe5 {[%clk 0:01:14.7]}
25. Nf5 {[%clk 0:00:25]} 25... Rb8 {[%clk 0:00:58.2]} 26. Nd6 {[%clk 0:00:24.2]}
26... Rf8 {[%clk 0:00:57.8]} 27. Re1 {[%clk 0:00:12.1]} 27... Bc6 {[%clk
0:00:54.8]} 28. Kc1 {[%clk 0:00:11.7]} 28... g6 {[%clk 0:00:54.3]} 29. Nc4
{[%clk 0:00:11.6]} 29... Rfe8 {[%clk 0:00:46.3]} 30. Ne3 {[%clk 0:00:10.5]}
30... Kg7 {[%clk 0:00:42]} 31. Ng4 {[%clk 0:00:10.2]} 31... Re7 {[%clk
0:00:37.4]} 32. Nf6 {[%clk 0:00:08.2]} 32... Rc8 {[%clk 0:00:28.8]} 33. Rh2
{[%clk 0:00:04.4]} 33... Rec7 {[%clk 0:00:27.3]} 34. h5 {[%clk 0:00:03.9]} 34...
Bb7 {[%clk 0:00:19.1]} 35. h6+ {[%clk 0:00:04]} 35... Kh8 {[%clk 0:00:18.4]} 36.
Rd1 {[%clk 0:00:04.5]} 36... a5 {[%clk 0:00:16.9]} 37. Rd6 {[%clk 0:00:04.2]}
37... Rf8 {[%clk 0:00:15]} 38. Rhd2 {[%clk 0:00:03.9]} 38... Rcc8 {[%clk
0:00:14.7]} 39. Rb6 {[%clk 0:00:03.8]} 39... Bc6 {[%clk 0:00:13.9]} 40. Rd6
{[%clk 0:00:03.5]} 40... Ba8 {[%clk 0:00:14.5]} 41. Rb5 {[%clk 0:00:03.1]} 41...
Rc6 {[%clk 0:00:10.8]} 42. Rxc6 {[%clk 0:00:03.1]} 42... Bxc6 {[%clk 0:00:11.7]}
43. Rxa5 {[%clk 0:00:03.5]} 43... Rd8 {[%clk 0:00:11.8]} 44. Rxe5 {[%clk
0:00:02.7]} 44... Ra8 {[%clk 0:00:10.8]} 45. c3 {[%clk 0:00:03.3]} 45... bxc3
{[%clk 0:00:10.5]} 46. Kc2 {[%clk 0:00:04]} 46... cxb2 {[%clk 0:00:10.1]} 47.
Kxb2 {[%clk 0:00:04.9]} 47... Rb8 {[%clk 0:00:10.8]} 48. Rc5 {[%clk 0:00:05.1]}
48... Ba8 {[%clk 0:00:10.7]} 49. Kc3 {[%clk 0:00:05.4]} 49... Rd8 {[%clk
0:00:10.8]} 50. b4 {[%clk 0:00:05.7]} 50... Bb7 {[%clk 0:00:10.6]} 51. b5 {[%clk
0:00:06.1]} 51... Rb8 {[%clk 0:00:10.7]} 52. Kb4 {[%clk 0:00:06.2]} 52... Ba6
{[%clk 0:00:10.2]} 53. Nd7 {[%clk 0:00:05.6]} 53... Rd8 {[%clk 0:00:04]} 54.
bxa6 {[%clk 0:00:05.6]} 54... Kg8 {[%clk 0:00:03.6]} 55. Nb6 {[%clk 0:00:05]}
55... f5 {[%clk 0:00:02.6]} 56. Rc8 {[%clk 0:00:03.7]} 56... Rxc8 {[%clk
0:00:02.4]} 57. Nxc8 {[%clk 0:00:04.6]} 57... f4 {[%clk 0:00:02.3]} 58. a7
{[%clk 0:00:05.5]} 58... f3 {[%clk 0:00:03.2]} 59. a8=Q {[%clk 0:00:06.4]} 59...
f2 {[%clk 0:00:04.1]} 60. Nd6# {[%clk 0:00:07]} 1-0

[Event "Early-Titled-Tuesday-Blitz-September-26-2023"]
[Site "Chess.com"]
[Date "2023.09.26"]
[Round "6"]
[White "Juicy_Fork"]
[Black "Raskolnikov6"]
[Result "0-1"]
[WhiteElo "2475"]
[BlackElo "2341"]
[TimeControl "180+1"]
[EndTime "9:09:52 PDT"]
[Termination "Raskolnikov6 won by checkmate"]

1. e4 {[%clk 0:03:00.9]} 1... c5 {[%clk 0:02:57.2]} 2. Nf3 {[%clk 0:03:01.1]}
2... Nc6 {[%clk 0:02:56.1]} 3. Bb5 {[%clk 0:03:00.6]} 3... g6 {[%clk 0:02:55.8]}
4. O-O {[%clk 0:03:00.5]} 4... Bg7 {[%clk 0:02:56.1]} 5. c3 {[%clk 0:03:01.2]}
5... Nf6 {[%clk 0:02:52.9]} 6. Qa4 {[%clk 0:03:01.4]} 6... O-O {[%clk
0:02:47.8]} 7. d4 {[%clk 0:02:59.1]} 7... cxd4 {[%clk 0:02:44.5]} 8. cxd4 {[%clk
0:03:00]} 8... d6 {[%clk 0:02:10.4]} 9. d5 {[%clk 0:02:51.8]} 9... Nb8 {[%clk
0:02:04.6]} 10. h3 {[%clk 0:02:48.3]} 10... Bd7 {[%clk 0:02:02]} 11. Nc3 {[%clk
0:02:44.1]} 11... Bxb5 {[%clk 0:02:01.5]} 12. Qxb5 {[%clk 0:02:44.8]} 12... Nbd7
{[%clk 0:01:42.7]} 13. Qxb7 {[%clk 0:02:36.1]} 13... Nc5 {[%clk 0:01:42.7]} 14.
Qb4 {[%clk 0:02:35.7]} 14... a5 {[%clk 0:01:41.6]} 15. Qc4 {[%clk 0:02:29.6]}
15... Qb8 {[%clk 0:01:32.5]} 16. Be3 {[%clk 0:02:20.3]} 16... Rd8 {[%clk
0:01:32.4]} 17. Bxc5 {[%clk 0:02:18.3]} 17... Rc8 {[%clk 0:01:28.1]} 18. Na4
{[%clk 0:02:06.8]} 18... Nd7 {[%clk 0:01:25.7]} 19. Bxd6 {[%clk 0:01:31.1]}
19... Rxc4 {[%clk 0:01:19.7]} 20. Bxb8 {[%clk 0:01:30.7]} 20... Rxa4 {[%clk
0:01:20.4]} 21. Bg3 {[%clk 0:01:12.3]} 21... Rxe4 {[%clk 0:01:20.3]} 22. Rfe1
{[%clk 0:01:06.5]} 22... Rxe1+ {[%clk 0:01:04.1]} 23. Rxe1 {[%clk 0:01:07.4]}
23... Bf6 {[%clk 0:01:04.5]} 24. Rc1 {[%clk 0:01:00.9]} 24... Bxb2 {[%clk
0:01:00.2]} 25. Rc7 {[%clk 0:00:57.4]} 25... Nf6 {[%clk 0:00:57.4]} 26. Rxe7
{[%clk 0:00:20.4]} 26... Nxd5 {[%clk 0:00:57.1]} 27. Rd7 {[%clk 0:00:20.8]}
27... Nc3 {[%clk 0:00:52.2]} 28. Rb7 {[%clk 0:00:19.4]} 28... Ba3 {[%clk
0:00:43.8]} 29. Ng5 {[%clk 0:00:17.3]} 29... Rf8 {[%clk 0:00:32.7]} 30. Bc7
{[%clk 0:00:16.8]} 30... a4 {[%clk 0:00:23.5]} 31. Ba5 {[%clk 0:00:16.7]} 31...
Nxa2 {[%clk 0:00:20.7]} 32. Ra7 {[%clk 0:00:12.4]} 32... Bc1 {[%clk 0:00:16.6]}
33. Ne4 {[%clk 0:00:11.2]} 33... a3 {[%clk 0:00:16.4]} 34. Bb6 {[%clk
0:00:09.7]} 34... Nb4 {[%clk 0:00:13.2]} 35. Nf6+ {[%clk 0:00:09.4]} 35... Kg7
{[%clk 0:00:13.1]} 36. Bd4 {[%clk 0:00:09.4]} 36... Nc6 {[%clk 0:00:13.3]} 37.
Nh5+ {[%clk 0:00:02.4]} 37... Kh6 {[%clk 0:00:13.3]} 38. Bg7+ {[%clk 0:00:01.2]}
38... Kxh5 {[%clk 0:00:13.7]} 39. g4+ {[%clk 0:00:01.5]} 39... Kh4 {[%clk
0:00:12.7]} 40. Bf6+ {[%clk 0:00:01.2]} 40... Kxh3 {[%clk 0:00:12.6]} 41. Ra6
{[%clk 0:00:01.3]} 41... Rc8 {[%clk 0:00:12.2]} 42. f3 {[%clk 0:00:01.1]} 42...
Kg3 {[%clk 0:00:12.4]} 43. Kf1 {[%clk 0:00:01.3]} 43... Kxf3 {[%clk 0:00:13]}
44. Ke1 {[%clk 0:00:01.3]} 44... Bb2 {[%clk 0:00:13.7]} 45. Kd2 {[%clk
0:00:01.6]} 45... Bxf6 {[%clk 0:00:13.4]} 46. Rxa3+ {[%clk 0:00:01.2]} 46...
Kxg4 {[%clk 0:00:13.1]} 47. Ke3 {[%clk 0:00:01.4]} 47... Kf5 {[%clk 0:00:13.1]}
48. Kf3 {[%clk 0:00:01.7]} 48... Be5 {[%clk 0:00:13.6]} 49. Ra5 {[%clk
0:00:01.8]} 49... g5 {[%clk 0:00:14.2]} 50. Ra6 {[%clk 0:00:01.9]} 50... g4+
{[%clk 0:00:14.4]} 51. Kg2 {[%clk 0:00:02.6]} 51... h5 {[%clk 0:00:14.8]} 52.
Ra1 {[%clk 0:00:02.3]} 52... h4 {[%clk 0:00:15.4]} 53. Rf1+ {[%clk 0:00:03.2]}
53... Kg5 {[%clk 0:00:15.9]} 54. Re1 {[%clk 0:00:03.3]} 54... f5 {[%clk
0:00:16.2]} 55. Rd1 {[%clk 0:00:03.5]} 55... h3+ {[%clk 0:00:16.7]} 56. Kh1
{[%clk 0:00:03.4]} 56... g3 {[%clk 0:00:16.5]} 57. Kg1 {[%clk 0:00:03]} 57...
Bd4+ {[%clk 0:00:16]} 58. Kh1 {[%clk 0:00:03.1]} 58... g2+ {[%clk 0:00:15.6]}
59. Kh2 {[%clk 0:00:03.6]} 59... g1=Q+ {[%clk 0:00:16.2]} 60. Rxg1+ {[%clk
0:00:02.7]} 60... Bxg1+ {[%clk 0:00:16.5]} 61. Kxh3 {[%clk 0:00:03.6]} 61... Bd4
{[%clk 0:00:15.6]} 62. Kg3 {[%clk 0:00:04]} 62... f4+ {[%clk 0:00:15.7]} 63. Kf3
{[%clk 0:00:04.9]} 63... Ne5+ {[%clk 0:00:15.4]} 64. Ke2 {[%clk 0:00:05.8]}
64... f3+ {[%clk 0:00:15.8]} 65. Kd2 {[%clk 0:00:05.1]} 65... Ra8 {[%clk
0:00:15]} 66. Ke1 {[%clk 0:00:02.9]} 66... Ra2 {[%clk 0:00:13.6]} 67. Kf1 {[%clk
0:00:02.2]} 67... Kg4 {[%clk 0:00:13.5]} 68. Ke1 {[%clk 0:00:02.4]} 68... f2+
{[%clk 0:00:12.8]} 69. Kf1 {[%clk 0:00:01.5]} 69... Ra1+ {[%clk 0:00:13.2]} 70.
Ke2 {[%clk 0:00:01.8]} 70... f1=Q+ {[%clk 0:00:13.6]} 71. Kd2 {[%clk 0:00:02.7]}
71... Qd3# {[%clk 0:00:13.6]} 0-1

[Event "Early-Titled-Tuesday-Blitz-September-26-2023"]
[Site "Chess.com"]
[Date "2023.09.26"]
[Round "6"]
[White "profedechess93"]
[Black "only_strong_moves"]
[Result "1-0"]
[WhiteElo "2671"]
[BlackElo "2521"]
[TimeControl "180+1"]
[EndTime "9:09:53 PDT"]
[Termination "profedechess93 won by resignation"]

1. e4 {[%clk 0:03:00.9]} 1... e6 {[%clk 0:02:59.3]} 2. d4 {[%clk 0:03:00.4]}
2... d5 {[%clk 0:02:59.5]} 3. Nc3 {[%clk 0:02:59.7]} 3... Bb4 {[%clk 0:02:59.4]}
4. e5 {[%clk 0:03:00]} 4... c5 {[%clk 0:02:59.4]} 5. a3 {[%clk 0:03:00.7]} 5...
Bxc3+ {[%clk 0:02:59.7]} 6. bxc3 {[%clk 0:03:01.6]} 6... Ne7 {[%clk 0:02:59.9]}
7. Nf3 {[%clk 0:03:02.2]} 7... Qc7 {[%clk 0:02:58.4]} 8. h4 {[%clk 0:03:01]}
8... h6 {[%clk 0:02:56.4]} 9. h5 {[%clk 0:03:01.1]} 9... Bd7 {[%clk 0:02:55.8]}
10. a4 {[%clk 0:02:59.8]} 10... Qa5 {[%clk 0:02:42.5]} 11. Bd2 {[%clk
0:02:57.1]} 11... Qc7 {[%clk 0:02:42.4]} 12. Bd3 {[%clk 0:02:56.2]} 12... Nbc6
{[%clk 0:02:37.9]} 13. O-O {[%clk 0:02:56.2]} 13... c4 {[%clk 0:02:31.2]} 14.
Be2 {[%clk 0:02:55.9]} 14... f5 {[%clk 0:02:29]} 15. Bc1 {[%clk 0:02:53.7]}
15... O-O-O {[%clk 0:02:22.5]} 16. Ba3 {[%clk 0:02:54.3]} 16... Be8 {[%clk
0:02:14.4]} 17. Nh4 {[%clk 0:02:38.9]} 17... Rg8 {[%clk 0:02:07.8]} 18. Qd2
{[%clk 0:02:34.9]} 18... g5 {[%clk 0:02:02.6]} 19. hxg6 {[%clk 0:02:34.6]} 19...
Nxg6 {[%clk 0:02:02.4]} 20. Nxg6 {[%clk 0:02:22.3]} 20... Rxg6 {[%clk
0:02:03.3]} 21. Rab1 {[%clk 0:01:24.3]} 21... Qg7 {[%clk 0:02:01.1]} 22. Bf3
{[%clk 0:01:24.5]} 22... Rg5 {[%clk 0:02:00.7]} 23. g3 {[%clk 0:01:08.2]} 23...
h5 {[%clk 0:02:00.6]} 24. Qf4 {[%clk 0:01:06.3]} 24... h4 {[%clk 0:01:51.5]} 25.
Bc1 {[%clk 0:00:56.3]} 25... Rg6 {[%clk 0:01:34.4]} 26. Bh5 {[%clk 0:00:50.7]}
26... hxg3 {[%clk 0:01:28.7]} 27. Bxg6 {[%clk 0:00:51.1]} 27... g2 {[%clk
0:01:28.8]} 28. Kxg2 {[%clk 0:00:42.3]} 28... Bxg6 {[%clk 0:01:28.6]} 29. Qg5
{[%clk 0:00:41.3]} 29... Rh8 {[%clk 0:01:23.7]} 30. Rh1 {[%clk 0:00:33.9]} 30...
Rg8 {[%clk 0:01:11.5]} 31. Bf4 {[%clk 0:00:30.9]} 31... Qf8 {[%clk 0:00:57.5]}
32. Kf3 {[%clk 0:00:26.5]} 32... Be8 {[%clk 0:00:51.9]} 33. Qf6 {[%clk
0:00:23.7]} 33... Bf7 {[%clk 0:00:47.5]} 34. Rh7 {[%clk 0:00:19.1]} 34... Nd8
{[%clk 0:00:47.5]} 35. Bg5 {[%clk 0:00:15.1]} 35... Bg6 {[%clk 0:00:39.1]} 36.
Re7 {[%clk 0:00:10.3]} 36... Bh5+ {[%clk 0:00:36]} 37. Kf4 {[%clk 0:00:10.2]}
37... Qxf6 {[%clk 0:00:33.9]} 38. exf6 {[%clk 0:00:10]} 38... b6 {[%clk
0:00:29.7]} 39. Rh1 {[%clk 0:00:10.5]} 39... Bg6 {[%clk 0:00:21.8]} 40. Rh6
{[%clk 0:00:10.2]} 40... a5 {[%clk 0:00:15.4]} 41. Rg7 {[%clk 0:00:10.4]} 41...
Bf7 {[%clk 0:00:13.8]} 42. Rxg8 {[%clk 0:00:10]} 42... Bxg8 {[%clk 0:00:14.7]}
43. Rh8 {[%clk 0:00:08.9]} 43... Bf7 {[%clk 0:00:15.1]} 44. Ke5 {[%clk
0:00:07.5]} 44... Kd7 {[%clk 0:00:15.1]} 45. Bh6 {[%clk 0:00:07.7]} 45... Nc6+
{[%clk 0:00:13.4]} 46. Kf4 {[%clk 0:00:08.6]} 46... e5+ {[%clk 0:00:11.3]} 47.
dxe5 {[%clk 0:00:08.7]} 47... Ke6 {[%clk 0:00:11.8]} 48. Rc8 {[%clk 0:00:07.7]}
48... Nxe5 {[%clk 0:00:11.8]} 49. Rb8 {[%clk 0:00:07.6]} 49... Ng6+ {[%clk
0:00:11.7]} 50. Kg5 {[%clk 0:00:07.6]} 50... Ke5 {[%clk 0:00:05.8]} 51. Rxb6
{[%clk 0:00:08.5]} 51... Nf4 {[%clk 0:00:05.3]} 52. Rb7 {[%clk 0:00:07.8]} 52...
Ne6+ {[%clk 0:00:03.9]} 53. Kh4 {[%clk 0:00:08.1]} 53... Be8 {[%clk 0:00:04.2]}
54. Bg7 {[%clk 0:00:07.8]} 54... Kf4 {[%clk 0:00:03.4]} 55. f7 {[%clk
0:00:07.8]} 55... Bxf7 {[%clk 0:00:03.6]} 56. Rxf7 {[%clk 0:00:07.3]} 56... Nc5
{[%clk 0:00:03.6]} 57. Bh6+ {[%clk 0:00:06.9]} 57... Kf3 {[%clk 0:00:03.5]} 58.
Be3 {[%clk 0:00:07.5]} 58... Nxa4 {[%clk 0:00:02.9]} 59. Rxf5+ {[%clk
0:00:08.1]} 59... Ke4 {[%clk 0:00:03.5]} 60. Rf4+ {[%clk 0:00:08.3]} 60... Ke5
{[%clk 0:00:04.2]} 61. Rf8 {[%clk 0:00:07.8]} 61... Nxc3 {[%clk 0:00:04.1]} 62.
Ra8 {[%clk 0:00:08.4]} 62... Nd1 {[%clk 0:00:03.6]} 63. Rxa5 {[%clk 0:00:07.4]}
63... Ke4 {[%clk 0:00:04.5]} 64. Bg5 {[%clk 0:00:07.4]} 64... Nxf2 {[%clk
0:00:04.9]} 65. Kg3 {[%clk 0:00:07.5]} 65... Nd1 {[%clk 0:00:05.4]} 66. Ra1
{[%clk 0:00:07.8]} 66... Nc3 {[%clk 0:00:05.2]} 67. Re1+ {[%clk 0:00:08.3]}
67... Kd4 {[%clk 0:00:05.5]} 68. Bf6+ {[%clk 0:00:08.7]} 68... Kc5 {[%clk
0:00:06.1]} 69. Bxc3 {[%clk 0:00:09.6]} 69... d4 {[%clk 0:00:06.8]} 70. Bxd4+
{[%clk 0:00:10]} 70... Kxd4 {[%clk 0:00:07.7]} 71. Re2 {[%clk 0:00:10.5]} 71...
Kc5 {[%clk 0:00:08.6]} 72. Kf2 {[%clk 0:00:11.1]} 72... c3 {[%clk 0:00:09.5]}
73. Ke1 {[%clk 0:00:12]} 73... Kc4 {[%clk 0:00:10.4]} 74. Kd1 {[%clk 0:00:12.9]}
74... Kb5 {[%clk 0:00:11.3]} 75. Re3 {[%clk 0:00:13.3]} 75... Kc5 {[%clk
0:00:12.2]} 76. Rd3 {[%clk 0:00:14.2]} 76... Kc6 {[%clk 0:00:13.1]} 77. Kc1
{[%clk 0:00:15]} 1-0

[Event "Early-Titled-Tuesday-Blitz-September-26-2023"]
[Site "Chess.com"]
[Date "2023.09.26"]
[Round "6"]
[White "Alphafischer2019"]
[Black "Qvalda"]
[Result "0-1"]
[WhiteElo "2590"]
[BlackElo "2382"]
[TimeControl "180+1"]
[EndTime "9:09:58 PDT"]
[Termination "Qvalda won by checkmate"]

1. d4 {[%clk 0:03:00.9]} 1... e6 {[%clk 0:02:59.7]} 2. Nc3 {[%clk 0:03:01.6]}
2... Nf6 {[%clk 0:03:00.2]} 3. Bf4 {[%clk 0:03:02.2]} 3... Bb4 {[%clk
0:02:59.1]} 4. Qd3 {[%clk 0:03:01.7]} 4... O-O {[%clk 0:02:49.5]} 5. O-O-O
{[%clk 0:02:58.8]} 5... d5 {[%clk 0:02:38.9]} 6. f3 {[%clk 0:02:40]} 6... c5
{[%clk 0:02:38.5]} 7. dxc5 {[%clk 0:02:39.2]} 7... Nbd7 {[%clk 0:02:35]} 8. e4
{[%clk 0:02:34.4]} 8... Nxc5 {[%clk 0:02:33.2]} 9. Qd4 {[%clk 0:02:30.4]} 9...
Qa5 {[%clk 0:02:28.6]} 10. e5 {[%clk 0:02:03.6]} 10... Nfd7 {[%clk 0:02:24.3]}
11. Nge2 {[%clk 0:02:00.6]} 11... b5 {[%clk 0:02:13.1]} 12. Bd2 {[%clk
0:01:56.4]} 12... Bb7 {[%clk 0:01:40.2]} 13. a3 {[%clk 0:01:55]} 13... Bxc3
{[%clk 0:01:40.4]} 14. Bxc3 {[%clk 0:01:55.3]} 14... Qb6 {[%clk 0:01:40.6]} 15.
Ng3 {[%clk 0:01:49.1]} 15... a5 {[%clk 0:01:39]} 16. Be2 {[%clk 0:01:29.1]}
16... Rfc8 {[%clk 0:01:30.9]} 17. Kd2 {[%clk 0:01:24.1]} 17... Qc6 {[%clk
0:01:15.1]} 18. Ke1 {[%clk 0:00:48.4]} 18... Na4 {[%clk 0:01:07.8]} 19. Rd3
{[%clk 0:00:46]} 19... b4 {[%clk 0:00:58.9]} 20. axb4 {[%clk 0:00:40.2]} 20...
axb4 {[%clk 0:00:59.8]} 21. Qxb4 {[%clk 0:00:35.4]} 21... Ba6 {[%clk 0:00:59.8]}
22. Re3 {[%clk 0:00:33]} 22... Bxe2 {[%clk 0:00:59.2]} 23. Nxe2 {[%clk
0:00:33.9]} 23... Rab8 {[%clk 0:00:56.5]} 24. Qd4 {[%clk 0:00:33.2]} 24... Nxc3
{[%clk 0:00:33.1]} 25. Rxc3 {[%clk 0:00:30.1]} 25... Qa6 {[%clk 0:00:32.8]} 26.
Rxc8+ {[%clk 0:00:18.8]} 26... Rxc8 {[%clk 0:00:33.7]} 27. c3 {[%clk 0:00:15.8]}
27... Qa1+ {[%clk 0:00:30.5]} 28. Qd1 {[%clk 0:00:14.4]} 28... Qxb2 {[%clk
0:00:31.1]} 29. f4 {[%clk 0:00:13.7]} 29... Nc5 {[%clk 0:00:29.9]} 30. Qd2
{[%clk 0:00:10.5]} 30... Qxd2+ {[%clk 0:00:22.4]} 31. Kxd2 {[%clk 0:00:10.7]}
31... Ne4+ {[%clk 0:00:23.1]} 32. Kc2 {[%clk 0:00:11.5]} 32... Nxc3 {[%clk
0:00:18.4]} 33. Nxc3 {[%clk 0:00:07.5]} 33... d4 {[%clk 0:00:19]} 34. Kd3 {[%clk
0:00:08.3]} 34... Rxc3+ {[%clk 0:00:14.5]} 35. Kxd4 {[%clk 0:00:08.2]} 35... Rc2
{[%clk 0:00:14.8]} 36. Ra1 {[%clk 0:00:08.3]} 36... g5 {[%clk 0:00:12.5]} 37.
fxg5 {[%clk 0:00:03.6]} 37... Rxg2 {[%clk 0:00:12.1]} 38. h4 {[%clk 0:00:04.1]}
38... Rg4+ {[%clk 0:00:12.3]} 39. Ke3 {[%clk 0:00:04.8]} 39... Rxh4 {[%clk
0:00:13.2]} 40. Kf3 {[%clk 0:00:04.8]} 40... Kg7 {[%clk 0:00:13.5]} 41. Ra7
{[%clk 0:00:05.1]} 41... Kg6 {[%clk 0:00:13.5]} 42. Kg3 {[%clk 0:00:03.8]} 42...
Rh5 {[%clk 0:00:13.2]} 43. Kf4 {[%clk 0:00:04.4]} 43... Rxg5 {[%clk 0:00:11.8]}
44. Ra8 {[%clk 0:00:05.3]} 44... Rf5+ {[%clk 0:00:11.7]} 45. Ke4 {[%clk
0:00:05.8]} 45... Kg7 {[%clk 0:00:11.1]} 46. Ra1 {[%clk 0:00:05.5]} 46... Rg5
{[%clk 0:00:11.2]} 47. Ra8 {[%clk 0:00:05.4]} 47... h5 {[%clk 0:00:11.1]} 48.
Ra1 {[%clk 0:00:03.1]} 48... h4 {[%clk 0:00:11.5]} 49. Rh1 {[%clk 0:00:02.8]}
49... Rh5 {[%clk 0:00:11.8]} 50. Kf4 {[%clk 0:00:03.2]} 50... h3 {[%clk
0:00:11.9]} 51. Kg4 {[%clk 0:00:03.6]} 51... Rh7 {[%clk 0:00:11.3]} 52. Rh2
{[%clk 0:00:02.6]} 52... Kg6 {[%clk 0:00:11.3]} 53. Kf4 {[%clk 0:00:03.3]} 53...
Rh4+ {[%clk 0:00:10.6]} 54. Kg3 {[%clk 0:00:04]} 54... Rh5 {[%clk 0:00:10.5]}
55. Kf4 {[%clk 0:00:04.2]} 55... Rf5+ {[%clk 0:00:09.6]} 56. Ke4 {[%clk
0:00:04.2]} 56... Rh5 {[%clk 0:00:09.9]} 57. Kf4 {[%clk 0:00:04.9]} 57... Rh8
{[%clk 0:00:09.3]} 58. Kg4 {[%clk 0:00:04.1]} 58... f6 {[%clk 0:00:07.6]} 59.
Kf4 {[%clk 0:00:03.9]} 59... fxe5+ {[%clk 0:00:07.1]} 60. Kxe5 {[%clk
0:00:04.8]} 60... Kg5 {[%clk 0:00:07.4]} 61. Kxe6 {[%clk 0:00:05.3]} 61... Kg4
{[%clk 0:00:07.9]} 62. Ke5 {[%clk 0:00:05.6]} 62... Kg3 {[%clk 0:00:08.3]} 63.
Rh1 {[%clk 0:00:04.6]} 63... h2 {[%clk 0:00:08.8]} 64. Ke4 {[%clk 0:00:05.1]}
64... Kg2 {[%clk 0:00:09.3]} 65. Ra1 {[%clk 0:00:03.8]} 65... h1=Q {[%clk
0:00:08.7]} 66. Rxh1 {[%clk 0:00:04.7]} 66... Kxh1 {[%clk 0:00:08.8]} 67. Kf3
{[%clk 0:00:05.6]} 67... Kh2 {[%clk 0:00:09.1]} 68. Kg4 {[%clk 0:00:05.4]} 68...
Rf8 {[%clk 0:00:10]} 69. Kg5 {[%clk 0:00:05.7]} 69... Kg3 {[%clk 0:00:10]} 70.
Kg6 {[%clk 0:00:06.6]} 70... Rf4 {[%clk 0:00:10]} 71. Kg7 {[%clk 0:00:07.5]}
71... Kf3 {[%clk 0:00:10.7]} 72. Kg6 {[%clk 0:00:08.4]} 72... Ke4 {[%clk
0:00:11.5]} 73. Kg5 {[%clk 0:00:09.3]} 73... Ke5 {[%clk 0:00:11.5]} 74. Kg6
{[%clk 0:00:10.2]} 74... Rf5 {[%clk 0:00:11.8]} 75. Kg7 {[%clk 0:00:10.6]} 75...
Rf6 {[%clk 0:00:12.2]} 76. Kg8 {[%clk 0:00:10.9]} 76... Ke6 {[%clk 0:00:12.6]}
77. Kg7 {[%clk 0:00:11.8]} 77... Kf5 {[%clk 0:00:12.2]} 78. Kh7 {[%clk
0:00:12.7]} 78... Rg6 {[%clk 0:00:12]} 79. Kh8 {[%clk 0:00:12.4]} 79... Kf6
{[%clk 0:00:12.3]} 80. Kh7 {[%clk 0:00:13.3]} 80... Kf7 {[%clk 0:00:12.5]} 81.
Kh8 {[%clk 0:00:13.6]} 81... Rh6# {[%clk 0:00:12.8]} 0-1